fUST/lending_fUST_20250803
["ID","MTS","AMOUNT","RATE_DAILY","PERIOD"]
[376883849,1754151058958,-460.0,0.00026849,10]
[376883850,1754151058967,-460.0,0.00026849,10]
[376883851,1754151058977,-460.0,0.00026849,10]
[376883852,1754151058987,-460.0,0.00026849,10]
[376883853,1754151058996,-460.0,0.00026849,10]
[376883854,1754151059006,-460.0,0.00026849,10]
[376883855,1754151059016,-460.0,0.00026849,10]
[376883856,1754151059025,-460.0,0.00026849,10]
[376883857,1754151059035,-460.0,0.00026849,10]
[376883858,1754151059045,-460.0,0.00026849,10]
[376883859,1754151059054,-460.0,0.00026849,10]
[376883860,1754151059063,-460.0,0.00026849,10]
[376883861,1754151059073,-460.0,0.00026849,10]
[376883862,1754151059082,-460.0,0.00026849,10]
[376883863,1754151059091,-460.0,0.00026849,10]
[376883864,1754151059101,-460.0,0.00026849,10]
[376883865,1754151059109,-460.0,0.00026849,10]
[376883866,1754151059119,-460.0,0.00026849,10]
[376883867,1754151059128,-460.0,0.00026849,10]
[376883868,1754151059137,-460.0,0.00026849,10]
[376883869,1754151059146,-460.0,0.00026849,10]
[376883870,1754151059156,-17.63401747,0.00026849,10]
[376883871,1754151059184,-166.97064883,0.00026849,10]
[376883872,1754151059194,-460.0,0.00026849,10]
[376883873,1754151059204,-11.07713358,0.00026849,10]
[376883874,1754151059711,-448.92286642,0.00026849,10]
[376883875,1754151059720,-463.61226152,0.00026849,10]
[376883876,1754151059729,-460.0,0.00026849,10]
[376883877,1754151059739,-460.0,0.00026849,10]
[376883878,1754151059748,-327.81802727,0.00026849,10]
[376883879,1754151059757,-258.70684478,0.00026849,10]
[376883880,1754151059769,-201.29315522,0.00026849,10]
[376883881,1754151059778,-398.70684478,0.00026849,10]
[376883882,1754151059793,-61.29315522,0.00026849,10]
[376883883,1754151059802,-460.0,0.00026849,10]
[376883884,1754151059811,-460.0,0.00026849,10]
[376883885,1754151059820,-460.0,0.00026849,10]
[376883886,1754151059829,-182.01226008,0.00026849,10]
[376883887,1754151059838,-460.0,0.00026849,10]
[376883888,1754151059847,-460.0,0.00026849,10]
[376883889,1754151059857,-460.0,0.00026849,10]
[376883890,1754151059866,-460.0,0.00026849,10]
[376883891,1754151059875,-460.0,0.00026849,10]
[376883892,1754151059884,-460.0,0.00026849,10]
[376883893,1754151059900,-460.0,0.00026849,10]
[376883894,1754151059910,-460.0,0.00026849,10]
[376883895,1754151059919,-460.0,0.00026849,10]
[376883896,1754151059928,-460.0,0.00026849,10]
[376883897,1754151059937,-460.0,0.00026849,10]
[376883898,1754151059946,-460.0,0.00026849,10]
[376883899,1754151059955,-460.0,0.00026849,10]
[376883900,1754151059964,-460.0,0.00026849,10]
[376883901,1754151059974,-4979.09,0.00026849,10]
[376883902,1754151059983,-460.0,0.00026849,10]
[376883903,1754151059992,-460.0,0.00026849,10]
[376883904,1754151060002,-4979.09,0.00026849,10]
[376883905,1754151060011,-460.0,0.00026849,10]
[376883906,1754151060021,-460.0,0.00026849,10]
[376883907,1754151060031,-460.0,0.00026849,10]
[376883908,1754151060042,-460.0,0.00026849,10]
[376883909,1754151060051,-460.0,0.00026849,10]
[376883910,1754151060061,-1172.71784827,0.00026849,10]
[376883911,1754151060079,-460.0,0.00026849,10]
[376883912,1754151060090,-1791.20160969,0.00026849,10]
[376883913,1754151060102,-1555.17054204,0.00026849,10]
[376883914,1754151060111,-460.0,0.00026849,10]
[376883915,1754151060120,-460.0,0.00026849,10]
[376883916,1754151060130,-460.0,0.00026849,10]
[376883917,1754151060139,-460.0,0.00026849,10]
[376883918,1754151060148,-460.0,0.00026849,10]
[376883919,1754151060158,-4979.09,0.00026849,10]
[376883920,1754151060167,-460.0,0.00026849,10]
[376883921,1754151060177,-460.0,0.00026849,10]
[376883922,1754151060186,-460.0,0.00026849,10]
[376883923,1754151060196,-460.0,0.00026849,10]
[376883924,1754151060205,-460.0,0.00026849,10]
[376883925,1754151060215,-246.03100075,0.00026849,10]
[376883926,1754151060226,-460.0,0.00026849,10]
[376883927,1754151060236,-4979.09,0.00026849,10]
[376883928,1754151060245,-460.0,0.00026849,10]
[376883929,1754151060255,-416.74394416,0.00026849,10]
[376883930,1754151060264,-460.0,0.00026849,10]
[376883931,1754151060273,-4979.09,0.00026849,10]
[376883932,1754151060282,-460.0,0.00026849,10]
[376883933,1754151060294,-251.17591105,0.00026849,10]
[376883934,1754151060304,-4979.09,0.00026849,10]
[376883935,1754151060313,-4979.09,0.00026849,10]
[376883936,1754151060324,-4979.09,0.00026849,10]
[376883937,1754151060333,-3985.90410411,0.00026849,10]
[376883938,1754151060351,-993.18589589,0.00026849,10]
[376883939,1754151060360,-151.0,0.00026849,7]
[376883940,1754151060370,-4979.09,0.00026849,10]
[376883941,1754151060379,-460.0,0.00026849,10]
[376883942,1754151060390,-460.0,0.00026849,10]
[376883943,1754151060399,-151.0,0.00026849,7]
[376883944,1754151060408,-460.0,0.00026849,10]
[376883945,1754151060419,-1199.0592214,0.00026849,10]
[376883947,1754151151091,200.0,0.00027034,120]
[376883948,1754151252396,2465.0,0.0002739,120]
[376883949,1754151271310,200.0,0.00026928,120]
[376883950,1754151451086,200.0,0.00026904,120]
[376883951,1754151511788,200.0,0.00027089,120]
[376883954,1754151688282,165.139328,0.00013699,2]
[376883957,1754151691910,200.0,0.00026732,120]
[376883964,1754151871743,200.0,0.00026925,120]
[376883965,1754151925368,233.1149031,0.00013699,2]
[376883969,1754151946115,-1799.63713066,0.00023703,2]
[376883970,1754151946136,-352.08248778,0.000238,2]
[376883977,1754151991467,200.0,0.00026856,120]
[376883980,1754151995090,-171.88770051,0.000238,2]
[376883981,1754152049084,-719.85883025,0.000238,2]
[376883985,1754152122937,697.10070902,0.00019,2]
[376883986,1754152125404,18000.0,0.00017,2]
[376883991,1754152189010,646.82183971,0.00021603,2]
[376884076,1754152232327,-206.1210399,0.00023703,2]
[376884078,1754152232337,-112.7189601,0.000238,2]
[376884080,1754152232348,-1035.66784917,0.000238,2]
[376884146,1754152238426,-172.78417219,0.000238,2]
[376884147,1754152238437,-644.25196527,0.00023803,2]
[376884160,1754152240326,-155.74803473,0.00023803,2]
[376884161,1754152240336,-2648.45696961,0.00023872,2]
[376884162,1754152240345,-165.139328,0.00023973,2]
[376884163,1754152240354,-886.59,0.00024297,10]
[376884164,1754152240364,-300.0,0.00024302,2]
[376884165,1754152240374,-1200.0,0.00024303,2]
[376884166,1754152240383,-300.0,0.00024303,2]
[376884167,1754152240393,-300.0,0.00024303,2]
[376884168,1754152240402,-1200.0,0.00024303,2]
[376884169,1754152240412,-2408.4999024,0.00024304,2]
[376884170,1754152240422,-500.0,0.00024306,2]
[376884171,1754152240432,-296.86647342,0.00024306,2]
[376884172,1754152240441,-500.0,0.00024306,2]
[376884173,1754152240451,-500.0,0.00024306,2]
[376884174,1754152240460,-628.11141449,0.00024306,2]
[376884175,1754152240471,-254.294,0.00024306,6]
[376884176,1754152240480,-55.60771437,0.00024306,2]
[376884177,1754152240511,-3478.56362719,0.00024306,2]
[376884187,1754152243374,-2439.32849533,0.00024306,2]
[376884188,1754152243386,-421.38016311,0.00024306,2]
[376884189,1754152243398,-38922.35857815,0.00024307,2]
[376884225,1754152246383,-3539.19818156,0.00024307,2]
[376884226,1754152246395,-577.97565066,0.00024307,2]
[376884227,1754152246406,-2445.10272903,0.00024307,2]
[376884240,1754152291354,200.0,0.00026481,120]
[376884245,1754152411109,200.0,0.00026622,120]
[376884247,1754152471560,200.0,0.00026592,120]
[376884248,1754152490463,648.9939418,0.00022207,2]
[376884249,1754152591342,200.0,0.00027112,120]
[376884251,1754152643077,165.139328,0.00013699,2]
[376884252,1754152653773,200.0,0.00026976,120]
[376884254,1754152714068,200.0,0.0002671,120]
[376884255,1754152771139,200.0,0.00026593,120]
[376884256,1754152792120,432.66262787,0.00022207,2]
[376884334,1754152951412,200.0,0.00027191,120]
[376884338,1754153093361,288.44175191,0.00022207,2]
[376884358,1754153146082,-700.0,0.00023803,2]
[376884359,1754153146102,-325.0,0.00024054,3]
[376884360,1754153146122,-325.0,0.00024054,3]
[376884361,1754153146144,-325.0,0.00024054,3]
[376884362,1754153146166,-325.0,0.00024054,3]
[376884363,1754153146187,-150.63805013,0.00024054,3]
[376884365,1754153194169,-174.36194987,0.00024054,3]
[376884366,1754153194190,-325.0,0.00024054,3]
[376884367,1754153194210,-300.0,0.00024191,2]
[376884368,1754153194231,-237.51575285,0.00024191,2]
[376884370,1754153243078,-640.9115329,0.0002385,2]
[376884371,1754153243099,-375.26549694,0.00024091,2]
[376884372,1754153243120,-62.48424715,0.00024191,2]
[376884373,1754153243141,-340.30699515,0.00024191,2]
[376884380,1754153431061,200.0,0.0002676,120]
[376884409,1754153432541,-700.0,0.00023803,2]
[376884414,1754153432720,-200.0,0.00024,2]
[376884415,1754153432729,-180.64462162,0.00024106,2]
[376884416,1754153432739,-300.0,0.00024191,2]
[376884417,1754153432748,-1200.0,0.00024191,2]
[376884418,1754153432757,-151.0,0.00024192,2]
[376884419,1754153432767,-151.0,0.00024192,2]
[376884420,1754153432776,-151.0,0.00024192,2]
[376884421,1754153432786,-17.04832428,0.00024192,2]
[376884422,1754153432798,-482.95167572,0.00024192,2]
[376884423,1754153432807,-151.0,0.00024192,2]
[376884424,1754153432816,-217.03524155,0.00024192,2]
[376884425,1754153432828,-282.96475845,0.00024192,2]
[376884426,1754153432838,-151.0,0.00024192,2]
[376884427,1754153432847,-245.07075917,0.00024192,2]
[376884428,1754153432858,-254.92924083,0.00024192,2]
[376884429,1754153432868,-151.0,0.00024192,2]
[376884430,1754153432877,-325.9005038,0.00024192,2]
[376884475,1754153438571,-174.0994962,0.00024192,2]
[376884477,1754153438580,-151.0,0.00024192,2]
[376884479,1754153438589,-500.0,0.00024192,2]
[376884481,1754153438598,-151.0,0.00024192,2]
[376884483,1754153438608,-500.0,0.00024192,2]
[376884485,1754153438617,-151.0,0.00024192,2]
[376884487,1754153438628,-151.0,0.00024192,2]
[376884489,1754153438637,-151.0,0.00024192,2]
[376884491,1754153438646,-151.0,0.00024192,2]
[376884493,1754153438655,-151.0,0.00024192,2]
[376884495,1754153438664,-151.0,0.00024192,2]
[376884496,1754153438673,-278.72920567,0.00024192,2]
[376884498,1754153438682,-151.0,0.00024192,2]
[376884500,1754153438691,-500.0,0.00024192,2]
[376884502,1754153438700,-151.0,0.00024192,2]
[376884504,1754153438711,-500.0,0.00024192,2]
[376884506,1754153438720,-151.0,0.00024192,2]
[376884508,1754153438730,-151.0,0.00024192,2]
[376884510,1754153438739,-151.0,0.00024192,2]
[376884512,1754153438748,-151.0,0.00024192,2]
[376884514,1754153438757,-151.0,0.00024192,2]
[376884517,1754153438767,-465.84,0.00024197,3]
[376884520,1754153438776,-163.47,0.00024197,10]
[376884523,1754153438785,-896.84,0.00024197,10]
[376884527,1754153438794,-200.41,0.000242,2]
[376884530,1754153438803,-500.0,0.00024206,2]
[376884534,1754153438813,-500.0,0.00024206,2]
[376884537,1754153438822,-500.0,0.00024206,2]
[376884540,1754153438831,-500.0,0.00024206,2]
[376884543,1754153438840,-197.72140066,0.00024206,2]
[376884546,1754153438849,-500.0,0.00024206,2]
[376884547,1754153438858,-500.0,0.00024206,2]
[376884549,1754153438868,-500.0,0.00024206,2]
[376884551,1754153438878,-277.59729617,0.00024206,2]
[376884553,1754153438888,-500.0,0.00024206,2]
[376884555,1754153438897,-163.30294478,0.00024206,2]
[376884557,1754153438906,-500.0,0.00024206,2]
[376884559,1754153438915,-500.0,0.00024206,2]
[376884561,1754153438925,-500.0,0.00024206,2]
[376884563,1754153438934,-500.0,0.00024206,2]
[376884565,1754153438943,-500.0,0.00024206,2]
[376884567,1754153438954,-500.0,0.00024206,2]
[376884569,1754153438963,-500.0,0.00024206,2]
[376884571,1754153438973,-500.0,0.00024206,2]
[376884573,1754153438982,-512.22683062,0.00024206,2]
[376884575,1754153438992,-500.0,0.00024206,2]
[376884577,1754153439000,-427.69030377,0.00024206,2]
[376884579,1754153439010,-500.0,0.00024206,2]
[376884581,1754153439019,-500.0,0.00024206,2]
[376884583,1754153439028,-500.0,0.00024206,2]
[376884585,1754153439037,-500.0,0.00024206,2]
[376884586,1754153439046,-500.0,0.00024206,2]
[376884588,1754153439055,-500.0,0.00024206,2]
[376884590,1754153439064,-500.0,0.00024206,2]
[376884592,1754153439073,-500.0,0.00024206,2]
[376884594,1754153439082,-333.31849051,0.00024206,2]
[376884596,1754153439091,-500.0,0.00024206,2]
[376884598,1754153439100,-500.0,0.00024206,2]
[376884600,1754153439110,-500.0,0.00024206,2]
[376884602,1754153439119,-500.0,0.00024206,2]
[376884604,1754153439128,-500.0,0.00024206,2]
[376884606,1754153439137,-500.0,0.00024206,2]
[376884608,1754153439146,-500.0,0.00024206,2]
[376884610,1754153439155,-500.0,0.00024206,2]
[376884612,1754153439164,-500.0,0.00024206,2]
[376884614,1754153439173,-500.0,0.00024206,2]
[376884616,1754153439182,-500.0,0.00024206,2]
[376884618,1754153439191,-500.0,0.00024206,2]
[376884619,1754153439200,-500.0,0.00024206,2]
[376884621,1754153439210,-500.0,0.00024206,2]
[376884623,1754153439219,-500.0,0.00024206,2]
[376884625,1754153439229,-500.0,0.00024206,2]
[376884627,1754153439238,-500.0,0.00024206,2]
[376884629,1754153439247,-500.0,0.00024206,2]
[376884631,1754153439256,-500.0,0.00024206,2]
[376884633,1754153439266,-500.0,0.00024206,2]
[376884635,1754153439275,-500.0,0.00024206,2]
[376884637,1754153439285,-500.0,0.00024206,2]
[376884639,1754153439294,-500.0,0.00024206,2]
[376884641,1754153439303,-500.0,0.00024206,2]
[376884643,1754153439312,-500.0,0.00024206,2]
[376884645,1754153439321,-500.0,0.00024206,2]
[376884647,1754153439331,-500.0,0.00024206,2]
[376884649,1754153439339,-500.0,0.00024206,2]
[376884651,1754153439349,-500.0,0.00024206,2]
[376884653,1754153439363,-500.0,0.00024206,2]
[376884655,1754153439373,-500.0,0.00024206,2]
[376884657,1754153439383,-405.24512664,0.00024206,2]
[376884659,1754153439392,-500.0,0.00024206,2]
[376884661,1754153439403,-500.0,0.00024206,2]
[376884663,1754153439412,-500.0,0.00024206,2]
[376884665,1754153439422,-500.0,0.00024206,2]
[376884667,1754153439433,-500.0,0.00024206,2]
[376884669,1754153439443,-500.0,0.00024206,2]
[376884671,1754153439454,-500.0,0.00024206,2]
[376884673,1754153439463,-500.0,0.00024206,2]
[376884675,1754153439472,-531.31552838,0.00024206,2]
[376884677,1754153439481,-500.0,0.00024206,2]
[376884679,1754153439490,-500.0,0.00024206,2]
[376884681,1754153439499,-500.0,0.00024206,2]
[376884683,1754153439509,-500.0,0.00024206,2]
[376884685,1754153439518,-500.0,0.00024206,2]
[376884687,1754153439528,-500.0,0.00024206,2]
[376884689,1754153439537,-500.0,0.00024206,2]
[376884691,1754153439547,-500.0,0.00024206,2]
[376884693,1754153439556,-500.0,0.00024206,2]
[376884695,1754153439565,-650.0,0.00024206,2]
[376884697,1754153439574,-418.20287656,0.00024206,2]
[376884699,1754153439584,-500.0,0.00024206,2]
[376884701,1754153439593,-500.0,0.00024206,2]
[376884703,1754153439602,-500.0,0.00024206,2]
[376884705,1754153439612,-500.0,0.00024206,2]
[376884707,1754153439621,-500.0,0.00024206,2]
[376884709,1754153439630,-500.0,0.00024206,2]
[376884711,1754153439639,-500.0,0.00024206,2]
[376884713,1754153439648,-500.0,0.00024206,2]
[376884715,1754153439657,-500.0,0.00024206,2]
[376884717,1754153439666,-231.18569517,0.00024206,2]
[376884719,1754153439676,-500.0,0.00024206,2]
[376884721,1754153439685,-310.842,0.00024206,6]
[376884723,1754153439694,-6116.83368213,0.00024206,2]
[376884726,1754153439713,-11.59631787,0.00024206,2]
[376884728,1754153439722,-3071.67291689,0.00024207,2]
[376884730,1754153439731,-1858.97231181,0.00024207,2]
[376884732,1754153439743,-567.95000424,0.00024207,2]
[376884734,1754153439754,-1784.47804289,0.00024207,2]
[376884736,1754153439769,-131145.87730048,0.00024207,2]
[376884738,1754153439779,-481.00114696,0.00024227,2]
[376884740,1754153439788,-500.0,0.00024273,2]
[376884742,1754153439798,-500.0,0.00024273,2]
[376884744,1754153439807,-500.0,0.00024273,2]
[376884746,1754153439816,-500.0,0.00024273,2]
[376884749,1754153439825,-500.0,0.00024273,2]
[376884751,1754153439835,-500.0,0.00024273,2]
[376884753,1754153439844,-500.0,0.00024273,2]
[376884755,1754153439853,-500.0,0.00024273,2]
[376884757,1754153439863,-500.0,0.00024273,2]
[376884759,1754153439872,-500.0,0.00024273,2]
[376884761,1754153439881,-500.0,0.00024273,2]
[376884763,1754153439890,-1000.0,0.00024306,2]
[376884765,1754153439900,-1000.0,0.00024306,2]
[376884767,1754153439909,-1000.0,0.00024306,2]
[376884769,1754153439918,-1000.0,0.00024306,2]
[376884772,1754153439927,-1000.0,0.00024306,2]
[376884773,1754153439936,-1000.0,0.00024306,2]
[376884775,1754153439946,-1000.0,0.00024306,2]
[376884777,1754153439957,-1000.0,0.00024372,7]
[376884779,1754153439966,-306.0,0.00024384,2]
[376884781,1754153439975,-323.9185187,0.00024384,2]
[376884783,1754153439984,-364.3585429,0.00024384,2]
[376884785,1754153439993,-12646.87439643,0.00024386,2]
[376884787,1754153440002,-1000.0,0.00024437,2]
[376884789,1754153440012,-200.0,0.00024547,2]
[376884791,1754153440021,-180.64462161,0.00024607,2]
[376884793,1754153440030,-192.29450127,0.0002461,2]
[376884795,1754153440039,-200.0,0.00024675,15]
[376884797,1754153440049,-200.0,0.00024675,15]
[376884799,1754153440059,-200.0,0.00024675,15]
[376884801,1754153440068,-200.0,0.00024675,15]
[376884803,1754153440078,-200.0,0.00024675,15]
[376884805,1754153440087,-3089.94991218,0.000248,2]
[376884807,1754153440096,-265.21865389,0.00024821,2]
[376884809,1754153440106,-160.0,0.00024837,2]
[376884811,1754153440115,-160.0,0.00024838,2]
[376884813,1754153440124,-500.0,0.00024873,2]
[376884815,1754153440133,-160.0,0.00024881,2]
[376884817,1754153440143,-231.57249719,0.00024881,2]
[376884819,1754153440154,-527.02465094,0.00024882,2]
[376884821,1754153440163,-216.27517063,0.00024882,2]
[376884823,1754153440173,-215.0795835,0.00024882,2]
[376884825,1754153440182,-1029.98330406,0.0002489,2]
[376884827,1754153440192,-1000.0,0.00024899,2]
[376884829,1754153440201,-1000.0,0.00024899,2]
[376884830,1754153440212,-700.0,0.00024899,2]
[376884832,1754153440221,-1000.0,0.000249,2]
[376884834,1754153440230,-1000.0,0.000249,2]
[376884836,1754153440239,-1000.0,0.000249,2]
[376884838,1754153440249,-1000.0,0.000249,2]
[376884840,1754153440258,-1000.0,0.000249,2]
[376884842,1754153440267,-1000.0,0.000249,2]
[376884844,1754153440276,-1000.0,0.000249,2]
[376884846,1754153440285,-1000.0,0.000249,2]
[376884848,1754153440295,-1000.0,0.000249,2]
[376884850,1754153440304,-1000.0,0.000249,2]
[376884852,1754153440313,-1000.0,0.000249,2]
[376884854,1754153440323,-1000.0,0.000249,2]
[376884856,1754153440332,-1000.0,0.000249,2]
[376884858,1754153440341,-1000.0,0.000249,2]
[376884860,1754153440351,-1000.0,0.000249,2]
[376884862,1754153440363,-1000.0,0.000249,2]
[376884864,1754153440372,-1000.0,0.000249,2]
[376884866,1754153440381,-1006.13,0.000249,2]
[376884868,1754153440391,-33417.4163794,0.000249,2]
[376884870,1754153440402,-244.50433947,0.00024902,2]
[376884872,1754153440411,-176.05,0.0002491,7]
[376884874,1754153440421,-176.05,0.0002501,7]
[376884876,1754153440430,-180.64462161,0.00025108,2]
[376884878,1754153440444,-176.05,0.0002511,7]
[376884880,1754153440458,-250.0,0.00025163,2]
[376884882,1754153440467,-1029.98330406,0.00025411,2]
[376884884,1754153440477,-1000.0,0.00025421,2]
[376884886,1754153440486,-151.0,0.000255,12]
[376884888,1754153440495,-500.0,0.00025534,2]
[376884890,1754153440504,-500.0,0.00025564,2]
[376884892,1754153440514,-6128.43,0.00025576,4]
[376884894,1754153440523,-180.64462161,0.00025609,2]
[376884896,1754153440532,-153.0,0.00025656,2]
[376884898,1754153440542,-153.0,0.00025656,2]
[376884900,1754153440551,-153.0,0.00025656,2]
[376884902,1754153440560,-153.0,0.00025656,2]
[376884904,1754153440570,-153.0,0.00025656,2]
[376884906,1754153440579,-153.0,0.00025656,2]
[376884908,1754153440588,-153.0,0.00025656,2]
[376884909,1754153440597,-153.0,0.00025656,2]
[376884911,1754153440607,-153.0,0.00025656,2]
[376884913,1754153440616,-153.0,0.00025656,2]
[376884927,1754153440750,-153.0,0.00025656,2]
[376884929,1754153440760,-153.0,0.00025656,2]
[376884931,1754153440769,-153.0,0.00025656,2]
[376884933,1754153440780,-153.0,0.00025656,2]
[376884935,1754153440790,-153.0,0.00025656,2]
[376884937,1754153440799,-153.0,0.00025656,2]
[376884939,1754153440808,-153.0,0.00025656,2]
[376884941,1754153440817,-500.0,0.00025757,2]
[376884943,1754153440827,-151.0,0.000258,11]
[376884945,1754153440836,-992.16629921,0.00025873,2]
[376884947,1754153440845,-5329.61273945,0.00025873,2]
[376884949,1754153440855,-8354.35409486,0.00025925,2]
[376884951,1754153440864,-1029.98330406,0.00025925,2]
[376884953,1754153440875,-31362.0781199,0.00025935,2]
[376884955,1754153440884,-500.0,0.00025959,2]
[376884957,1754153440893,-1500.0,0.00025968,2]
[376884959,1754153440903,-700.0,0.00025995,2]
[376884961,1754153440913,-178.563763,0.00026,2]
[376884963,1754153440923,-320.2107096,0.00026,2]
[376884965,1754153440932,-178.563763,0.00026,2]
[376884967,1754153440942,-178.563763,0.00026,2]
[376884969,1754153440954,-178.563763,0.00026,2]
[376884971,1754153440963,-178.563763,0.00026,2]
[376884973,1754153440973,-181.6464207,0.00026,2]
[376884975,1754153440987,-500.0,0.00026001,2]
[376884977,1754153440996,-958.99700825,0.0002602,2]
[376884979,1754153441006,-195.15987768,0.0002602,2]
[376884981,1754153441017,-165.139328,0.00026027,2]
[376884983,1754153441027,-500.0,0.0002603,2]
[376884985,1754153441037,-1074.8,0.00026032,2]
[376884987,1754153441047,-727.94270296,0.00026043,2]
[376884989,1754153441057,-992.1662992,0.00026092,2]
[376884991,1754153441067,-151.0,0.000261,14]
[376884993,1754153441078,-180.64462161,0.00026111,2]
[376884995,1754153441087,-190.90177104,0.0002616,2]
[376884997,1754153441097,-151.0,0.000263,17]
[376884999,1754153441108,-992.1662992,0.00026311,2]
[376885001,1754153441119,-5329.61273944,0.00026311,2]
[376885003,1754153441129,-151.0,0.00026356,2]
[376885005,1754153441139,-151.0,0.00026356,2]
[376885007,1754153441151,-151.0,0.00026356,2]
[376885009,1754153441161,-151.0,0.00026356,2]
[376885011,1754153441171,-151.0,0.00026356,2]
[376885013,1754153441181,-151.0,0.00026356,2]
[376885015,1754153441191,-151.0,0.00026356,2]
[376885017,1754153441200,-151.22850052,0.00026356,2]
[376885019,1754153441213,-151.0,0.00026356,2]
[376885021,1754153441224,-151.0,0.00026356,2]
[376885023,1754153441234,-266.81728855,0.00026356,2]
[376885025,1754153441244,-151.0,0.00026356,2]
[376885027,1754153441255,-151.0,0.00026356,2]
[376885029,1754153441264,-151.0,0.00026356,2]
[376885030,1754153441274,-151.50902877,0.00026356,2]
[376885032,1754153441285,-151.0,0.00026356,2]
[376885035,1754153441296,-151.0,0.00026356,2]
[376885037,1754153441307,-500.0,0.00026356,2]
[376885038,1754153441316,-151.0,0.00026356,2]
[376885040,1754153441327,-151.0,0.00026356,2]
[376885042,1754153441338,-151.0,0.00026356,2]
[376885044,1754153441347,-151.0,0.00026356,2]
[376885046,1754153441361,-151.0,0.00026356,2]
[376885048,1754153441370,-151.0,0.00026356,2]
[376885050,1754153441381,-151.0,0.00026356,2]
[376885052,1754153441391,-221.92136843,0.00026356,2]
[376885054,1754153441402,-151.0,0.00026356,2]
[376885056,1754153441412,-156.72432653,0.00026356,2]
[376885057,1754153441423,-151.0,0.00026356,2]
[376885058,1754153441436,-1996.171,0.00026502,2]
[376885059,1754153441448,-407.0,0.00026502,2]
[376885060,1754153441459,-635.0,0.00026502,2]
[376885061,1754153441470,-8354.35409486,0.00026506,2]
[376885062,1754153441482,-2000.0,0.00026516,2]
[376885063,1754153441492,-992.1662992,0.0002653,2]
[376885064,1754153441504,-509.28022222,0.00026543,2]
[376885065,1754153441514,-1029.98330406,0.0002659,2]
[376885066,1754153441526,-151.0,0.000266,19]
[376885067,1754153441537,-1193.931494,0.000266,2]
[376885068,1754153441548,-160.12652981,0.00026603,2]
[376885069,1754153441560,-180.64462161,0.00026612,2]
[376885070,1754153441571,-198.0,0.0002663,2]
[376885071,1754153441582,-206.0603448,0.0002663,2]
[376885072,1754153441592,-500.0,0.0002663,2]
[376885073,1754153441601,-151.0,0.0002663,2]
[376885074,1754153441611,-151.0,0.0002663,2]
[376885075,1754153441620,-151.0,0.0002663,2]
[376885076,1754153441629,-151.0,0.0002663,2]
[376885077,1754153441638,-151.0,0.0002663,2]
[376885078,1754153441647,-151.1614,0.00026715,2]
[376885079,1754153441657,-150.0,0.00026736,2]
[376885080,1754153441666,-500.0,0.00026748,2]
[376885082,1754153441675,-153.05430902,0.00026748,2]
[376885083,1754153441685,-172.05194334,0.00026749,2]
[376885085,1754153441694,-992.1662992,0.00026749,2]
[376885086,1754153441704,-5329.61273944,0.00026749,2]
[376885088,1754153441713,-4447.62930916,0.00026749,2]
[376885090,1754153441723,-600.0,0.00026773,2]